Cogmind - Beta 16 @@@ ROGUE MODE // 2025.11.13 @ 16:44:53 Player: TinyBoulder Result: Destroyed by XS-MF3(z) with Zionite Laser-S Performance ------------- Evolutions (3) 1500 Regions Visited (8) 1600 Robots Destroyed (26) 130 Value Destroyed (935) 935 Prototype IDs (5) 100 Alien Tech Used (0) 0 Bonus (1411) 1411 TOTAL SCORE: 5676 Bonus ------- Follower Combat Kills 111 Met Imprinter 300 Destroyed Z-Imprinter 1000 Cogmind --------- Core Integrity 0/700 Matter 205/300 Energy 11/100 System Corruption 0% Temperature Cool (9) Movement Core (50) Location -7/Deep Caves Parts ------- > --- POWER (1) -------- (None) > --- PROPULSION (4) --- (None) > --- UTILITY (6) ------ Targeting Computer Makeshift Hacking Suite Makeshift Hacking Suite Makeshift Hacking Suite Makeshift Hacking Suite > --- WEAPON (2) ------- (None) > --- INVENTORY (5) ---- Improved Heat Sink Improved Cooling System Actuator Array Zionite Phaser-S Powered Hammer Peak State ------------ > --- POWER ------------ Heavy Deuterium Engine > --- PROPULSION ------- Compact Wheel Armored Wheel Zionite Glidesys I > --- UTILITY ---------- Huge Storage Unit Surveybot 24 Chip Targeting Computer Actuator Array Zionite Light Carapace > --- WEAPON ----------- Flamer Makeshift Hammer > --- INVENTORY -------- Heavy Deuterium Engine Light Angular Momentum Engine Zionite Light DM Reactor Zionite Light DM Reactor Improved Heat Sink Improved Heat Sink Improved Heat Sink Improved Heat Sink Experimental Heat Sink Cooling System Improved Cooling System Improved Cooling System Hardened Medium Armor Plating Improved Light Armor Plating Makeshift Hacking Suite Makeshift Hacking Suite Makeshift Hacking Suite Makeshift Hacking Suite Field Recycling Unit Flamer Flamer Powered Hammer Powered Hammer [Rating: 48] Favorites ----------- Power Heavy Deuterium Engine Engine Heavy Deuterium Engine Power Core Nuclear Core Propulsion Light Treads Treads Light Treads Wheel Compact Wheel Hover Unit Zionite Glidesys I Utility Huge Storage Unit Device Sensor Array Storage Huge Storage Unit Processor Targeting Computer Hackware Makeshift Hacking Suite Protection Light Armor Plating Weapon Light Cannon Energy Gun Zionite Phaser-S Ballistic Gun Light Assault Rifle Ballistic Cannon Light Cannon Launcher Subdweller Shrapnel Launcher Special Weapon Flamer Impact Weapon Powered Hammer Build | -11 -10 -10 -8 -7 -7 -7 -7 -7 ------- Run | Yrd Mat Sub Mat Fac Low Low Zio Dee Slots Evolved 6 | . . . 4 2 . . . . Power . | . . . . . . . . . Propulsion 2 | . . . . 2 . . . . Utility 4 | . . . 4 . . . . . Weapon . | . . . . . . . . . Parts Attached 60 | 6 2 7 12 4 5 3 . 21 Power 7 | 1 . 1 2 1 . . . 2 Engine 6 | 1 . 1 1 1 . . . 2 Core 1 | . . . 1 . . . . . Reactor . | . . . . . . . . . Propulsion 13 | 2 . 2 . 2 3 2 . 2 Treads 8 | 2 . 2 . 2 2 . . . Leg . | . . . . . . . . . Wheel 4 | . . . . . 1 2 . 1 Hover 1 | . . . . . . . . 1 Flight . | . . . . . . . . . Utility 24 | 1 2 . 8 . . . . 13 Device 10 | . 1 . 4 . . . . 5 Storage 2 | 1 1 . . . . . . . Processor 4 | . . . 3 . . . . 1 Hackware 4 | . . . . . . . . 4 Protection 4 | . . . 1 . . . . 3 Artifact . | . . . . . . . . . Weapon 16 | 2 . 4 2 1 2 1 . 4 Energy Gun 1 | . . . . . . . . 1 Energy Cannon . | . . . . . . . . . Ballistic Gun 2 | 2 . . . . . . . . Ballistic Cannon 6 | . . 4 2 . . . . . Launcher 1 | . . . . . 1 . . . Special Weapon 3 | . . . . . . . . 3 Impact Weapon 3 | . . . . 1 1 1 . . Slashing Weapon . | . . . . . . . . . Piercing Weapon . | . . . . . . . . . Special Melee Weapon . | . . . . . . . . . Unidentified Prototypes 5 | . . . . 1 . . . 4 Corrupted Parts 1 | . . . . . 1 . . . System Corruption 4 | . . . . . 4 . . . Parts Lost 33 | . . 4 1 . 1 1 . 26 Power 3 | . . 1 . . . . . 2 Propulsion 12 | . . 2 . . 1 1 . 8 Utility 10 | . . . 1 . . . . 9 Weapon 8 | . . 1 . . . . . 7 Highest Loss Streak 13 | . . 4 1 . 1 1 . 13 To Critical Strikes 1 | . . 1 . . . . . . Average Backups 20 | 2 10 14 21 24 23 22 22 21 Power 2 | . 1 1 1 2 2 2 2 3 Propulsion 3 | 1 5 5 5 3 2 2 2 . Utility 9 | . 1 2 7 11 11 12 13 14 Weapon 5 | . 2 5 6 8 6 5 5 3 Tool/Special . | . . . . . . . . . Unused Backups 22 | . . . 6 1 2 4 1 8 Power 7 | . . . 2 1 1 . . 3 Propulsion 2 | . . . 2 . . . . . Utility 12 | . . . 2 . . 4 1 5 Weapon 1 | . . . . . 1 . . . Tool/Special . | . . . . . . . . . Average Slot Usage (%) 95 | . 99 98 92 99 100 99 100 80 Engine 7 | . 14 14 3 1 7 7 7 6 Core 1 | . . . 5 5 . . . . Treads 21 | . 28 26 18 29 29 24 15 6 Wheel 4 | . . . . . . 5 15 12 Device 20 | . 13 14 23 23 23 23 23 15 Storage 8 | . 14 14 9 7 7 7 7 7 Processor 10 | . . . 9 15 15 15 15 12 Protection 1 | . . . 4 . . . . 3 Ballistic Gun 3 | . 28 . . . . . . . Ballistic Cannon 6 | . . 27 18 14 1 . . . Launcher 1 | . . . . . 4 1 . . Impact Weapon 5 | . . . . . 8 13 15 8 Peak Build Rating 48 | 6 8 9 24 32 38 39 39 48 Average Rating 27 | 4 7 8 18 27 36 37 38 39 On Entrance 21 | . 6 8 9 24 32 38 39 39 Avg Prop Armor Cover (%) 21 | . . . . . . 21 21 21 Naked Turns . | . . . . . . . . . Heaviest Build 114 | 11 87 92 106 107 112 109 104 114 Greatest Support 93 | 40 40 40 40 80 93 93 26 28 Greatest Overweight (x) 6 | . 2 4 2 1 6 6 3 6 Average Overweight (x) 2 | . 1 2 2 1 1 2 3 3 Largest Inventory Capacity 25 | 8 25 25 25 25 25 25 25 25 Average Capacity 24 | 6 21 25 25 25 25 25 25 24 Most Carried 25 | 6 16 16 25 25 25 25 25 25 Average Carried 20 | 2 10 14 21 24 24 24 24 22 Final Capacity 25 | 8 25 25 25 25 25 25 25 5 Final Carried 25 | 6 16 14 25 25 24 25 25 5 Class Distribution -------------------- 96% | Mutant Dominant Class ---------------- Mutant | -10/Materials Mutant | -10/Subcaves Mutant | -8/Materials Mutant | -7/Factory Mutant | -7/Lower Caves Mutant | -7/Lower Caves Mutant | -7/Zion Mutant | -7/Deep Caves Resources | -11 -10 -10 -8 -7 -7 -7 -7 -7 ----------- Run | Yrd Mat Sub Mat Fac Low Low Zio Dee Matter Collected 1258 | 223 125 68 339 50 146 122 30 155 Remotely . | . . . . . . . . . Salvage Created 976 | . 108 22 311 49 292 109 . 85 Parts 52 | . 7 2 24 4 5 7 . 3 Haulers Intercepted 2 | . . . 1 1 . . . . Recyclers Shooed . | . . . . . . . . . Parts Field Recycled . | . . . . . . . . . Retrieved Matter . | . . . . . . . . . Parts Self-Destructed 11 | . . 2 . . 2 7 . . Prevented 2 | . . . . . 2 . . . Parts Restored . | . . . . . . . . . Kills | -11 -10 -10 -8 -7 -7 -7 -7 -7 ------- Run | Yrd Mat Sub Mat Fac Low Low Zio Dee Combat Hostiles Destroyed 21 | . 3 3 7 . 2 4 . 2 Melee 1 | . . . . . 1 . . . Guns 3 | . 3 . . . . . . . Cannons 10 | . . 3 7 . . . . . AOE 4 | . . . . . . 4 . . Classes Destroyed 14 | . 1 1 4 1 4 1 . 2 Worker 1 | . . . . 1 . . . . Tunneler 1 | . . . 1 . . . . . Hauler 2 | . . . 1 1 . . . . Minesweeper 1 | . . . . . 1 . . . Swarmer 4 | . . . . . . 4 . . Grunt 5 | . 3 . 2 . . . . . Sentry 3 | . . . 3 . . . . . Hunter 3 | . . . 2 . 1 . . . Behemoth 1 | . . . . . 1 . . . Subdweller 3 | . . 3 . . . . . . Z-Technician 1 | . . . . . . . . 1 Z-Light 2 | . . . . . . . . 2 Packrat 1 | . . . . . 1 . . . Tinkerer 1 | . . . . . 1 . . . Best Kill Streak 4 | . 1 3 4 2 1 4 . 1 Combat Bots Only 4 | . 1 3 2 . 1 4 . 1 Max Kills in Single Turn 4 | . 1 1 1 2 1 4 . 1 Gunslinging . | . . . . . . . . . Exploded 4 | . . . . . . 4 . . Melee 1 | . . . . . 1 . . . Uniques/NPCs Destroyed 1 | . . . . . . . . 1 Z-Imprinter (-7/Deep Caves) Combat | -11 -10 -10 -8 -7 -7 -7 -7 -7 -------- Run | Yrd Mat Sub Mat Fac Low Low Zio Dee Hostile Shots Fired 322 | . 20 42 45 . 43 33 . 139 Missed 91 | . 7 9 18 . 13 13 . 31 Hits 231 | . 13 33 27 . 30 20 . 108 Projectile 231 | . 13 33 27 . 30 20 . 108 Critical Strikes 2 | . . 2 . . . . . . Damage Taken 4981 | . 141 699 374 . 551 128 . 3088 Core 925 | . 22 152 29 . 26 . . 696 Absorbed by Shields 200 | . . . 32 . 96 24 . 48 Core Remaining (%) 74 | 100 . 30 94 . . . . . Volleys Fired 75 | . 17 18 27 2 . 1 . 10 Largest 2 | . 2 2 2 2 . 1 . 2 Hottest 200 | . 40 60 67 67 . 40 . 200 Shots Fired 142 | . 34 36 53 4 1 1 . 13 Gun 34 | . 34 . . . . . . . Cannon 97 | . . 36 53 4 . . . 4 Launcher 4 | . . . . . 1 1 . 2 Special 7 | . . . . . . . . 7 Kinetic 135 | . 34 36 53 4 1 1 . 6 Thermal 7 | . . . . . . . . 7 Explosive . | . . . . . . . . . Electromagnetic . | . . . . . . . . . Robot Hit Streak 9 | . 5 7 9 7 . . . 7 Robot Miss Streak 4 | . 2 1 4 2 . . . 2 Penetration Max . | . . . . . . . . . Secondary Targets . | . . . . . . . . . Shots Hit Robots 119 | . 22 28 34 4 13 1 . 17 Core Hits 55 | . 8 5 22 4 4 5 . 7 Critical Kills 1 | . . . . . 1 . . . Critical Parts Destroyed 6 | . . . . . 3 1 . 2 Critical Strikes 11 | . . 1 2 . 5 1 . 2 Blast 3 | . . 1 2 . . . . . Smash 8 | . . . . . 5 1 . 2 Melee Attacks 40 | . . . . 1 17 4 . 18 Impact 40 | . . . . 1 17 4 . 18 Slashing . | . . . . . . . . . Piercing . | . . . . . . . . . Sneak Attacks 3 | . . . . . 3 . . . Combat Hostiles . | . . . . . . . . . Follow-up Attacks 3 | . . . . . 2 . . 1 Damage Inflicted 3236 | . 218 514 565 81 810 301 . 747 Guns 218 | . 218 . . . . . . . Cannons 1238 | . . 514 565 81 . . . 78 Explosions 404 | . . . . . . 187 . 217 Melee 1307 | . . . . . 810 114 . 383 Ramming . | . . . . . . . . . Kinetic 1860 | . 218 514 565 81 . 187 . 295 Thermal 69 | . . . . . . . . 69 Explosive . | . . . . . . . . . Electromagnetic . | . . . . . . . . . Impact 1307 | . . . . . 810 114 . 383 Slashing . | . . . . . . . . . Piercing . | . . . . . . . . . Highest Corruption 4 | . . . . . 4 4 4 . Average Corruption 4 | . . . . . 4 4 4 . Corruption Purged . | . . . . . . . . . Corruption Blocked . | . . . . . . . . . Effects 33 | . . . . . 20 12 1 . Message Errors 7 | . . . . . 6 1 . . Matter Fused 10 | . . . . . 6 4 . . Heat Flow Errors 5 | . . . . . 3 2 . . Energy Discharges 5 | . . . . . 2 2 1 . Data Loss (minor) 4 | . . . . . 1 3 . . Data Loss (major) 1 | . . . . . 1 . . . Misfires 1 | . . . . . 1 . . . Overload Shots . | . . . . . . . . . Overflow Damage 601 | . . . . . 285 114 . 202 Projectiles 13 | . . . . . . . . 13 Explosions . | . . . . . . . . . Melee 588 | . . . . . 285 114 . 189 Knockbacks 18 | . . 6 6 . 2 . . 4 Impact 3 | . . . . . 2 . . 1 Kinetic 14 | . . 6 5 . . . . 3 Secondary 1 | . . . 1 . . . . . Self-Inflicted Damage . | . . . . . . . . . Shots . | . . . . . . . . . Rammed . | . . . . . . . . . Targets Rammed . | . . . . . . . . . Kicked . | . . . . . . . . . Crushed . | . . . . . . . . . Highest Temperature 187 | . 6 . 14 . 187 182 . 81 Average Temperature 45 | . 6 . 6 . 74 92 . 42 Received Heat Transfer 1338 | . 78 138 54 . 80 10 . 978 Siege Activations . | . . . . . . . . . Martial Activations . | . . . . . . . . . Shielding Activations . | . . . . . . . . . Robots Disrupted . | . . . . . . . . . Combat Hostiles . | . . . . . . . . . Robots Corrupted 4 | . . . . . 3 . . 1 Combat Hostiles 2 | . . . . . 1 . . 1 Parts Fried 3 | . . . . . 3 . . . Impact Corruptions 15 | . . . . . 8 3 . 4 Robots Melted 1 | . . . . . . . . 1 Combat Hostiles 1 | . . . . . . . . 1 Parts Melted . | . . . . . . . . . Heat Transferred 420 | . . . . . . . . 420 Parts Sabotaged . | . . . . . . . . . Parts Stolen . | . . . . . . . . . Parts Stripped . | . . . . . . . . . Power Chain Reactions . | . . . . . . . . . Alert | -11 -10 -10 -8 -7 -7 -7 -7 -7 ------- Run | Yrd Mat Sub Mat Fac Low Low Zio Dee Maximum Alert Level . | . . . . . . . . . Low Security (%) 100 | 100 100 . 100 100 . . . . Level 1 . | . . . . . . . . . Level 2 . | . . . . . . . . . Level 3 . | . . . . . . . . . Level 4 . | . . . . . . . . . Level 5 . | . . . . . . . . . High Security . | . . . . . . . . . Max Security . | . . . . . . . . . Peak Influence 120 | . 55 . 120 14 . . . . Initial . | . . . . . . . . . Average 13 | . 9 . 23 . . . . . Influence Increases 602 | . 137 . 233 27 65 140 . . Destroy 0b10 Robot/C 320 | . 60 . 140 . 40 80 . . Destroy 0b10 Robot/NC 30 | . . . 10 10 5 5 . . Destroy Leader 114 | . 20 . 62 2 20 10 . . Successful Hack 32 | . 12 . 6 14 . . . . Select Force Hacks 30 | . 30 . . . . . . . Disable Machine 15 | . . . 15 . . . . . Destroy Structure 1 | . . . . 1 . . . . Lose Combat Pursuer 60 | . 15 . . . . 45 . . Influence Decreases 602 | . 137 . 233 27 65 140 . . Time Decay 602 | . 137 . 233 27 65 140 . . Squads Dispatched 8 | . 4 . 1 3 . . . . Investigation 1 | . 1 . . . . . . . Extermination 1 | . . . . 1 . . . . Reinforcement 6 | . 3 . 1 2 . . . . Assault . | . . . . . . . . . Garrison . | . . . . . . . . . Intercept . | . . . . . . . . . Searches Triggered . | . . . . . . . . . Construction Impeded . | . . . . . . . . . Haulers Reinforced 1 | . . . . 1 . . . . Active Scanning Responses . | . . . . . . . . . Cargo Convoy Interrupts . | . . . . . . . . . Stealth | -11 -10 -10 -8 -7 -7 -7 -7 -7 --------- Run | Yrd Mat Sub Mat Fac Low Low Zio Dee Distress Signals 2 | . 2 . . . . . . . Communications Jammed . | . . . . . . . . . Distress Signals . | . . . . . . . . . Times Spotted 51 | . 12 3 13 1 2 6 . 14 Peak Tracking Total 5 | . 5 3 3 . 1 4 . 5 Tactical Retreats 4 | . 1 . . . . 3 . . Traps | -11 -10 -10 -8 -7 -7 -7 -7 -7 ------- Run | Yrd Mat Sub Mat Fac Low Low Zio Dee Traps Triggered . | . . . . . . . . . Indirectly . | . . . . . . . . . Trap Hack Attempts . | . . . . . . . . . Triggered . | . . . . . . . . . Disarmed . | . . . . . . . . . Reprogrammed . | . . . . . . . . . Reused 2 | . . . . . . . . 2 Traps Extracted . | . . . . . . . . . Installed 2 | . . . . . . . . 2 Triggered . | . . . . . . . . . Most Traps Carried 2 | . . . . . 2 2 2 2 Machines | -11 -10 -10 -8 -7 -7 -7 -7 -7 ---------- Run | Yrd Mat Sub Mat Fac Low Low Zio Dee Machines Disabled 4 | . . . 1 . 1 . . 2 Max in Single Turn 1 | . . . 1 . 1 . . 1 Garrison Access 1 | . . . . 1 . . . . Machines Repaired . | . . . . . . . . . Machines Dismantled . | . . . . . . . . . Machines Sabotaged . | . . . . . . . . . Overloaded Fab Kills . | . . . . . . . . . Hacking | -11 -10 -10 -8 -7 -7 -7 -7 -7 --------- Run | Yrd Mat Sub Mat Fac Low Low Zio Dee Machines Accessed 10 | . 3 . 2 4 . 1 . . Terminals 6 | . 2 . 1 3 . . . . Fabricators . | . . . . . . . . . Repair Stations . | . . . . . . . . . Recycling Units 2 | . 1 . 1 . . . . . Scanalyzers . | . . . . . . . . . Garrison Access 1 | . . . . 1 . . . . Total Hacks 19 | . 9 . 3 6 . 1 . . Successful 10 | . 5 . 2 2 . 1 . . Failed 9 | . 4 . 1 4 . . . . Catastrophic 2 | . . . . 2 . . . . Database Lockouts . | . . . . . . . . . Manual 11 | . 4 . 2 1 . . 4 . Terminals 14 | . 7 . 2 5 . . . . Fabricators . | . . . . . . . . . Repair Stations . | . . . . . . . . . Recycling Units 3 | . 2 . 1 . . . . . Scanalyzers . | . . . . . . . . . Garrison Access 1 | . . . . 1 . . . . Terminal Hacks 3 | . 2 . . . . 1 . . Open Door 1 | . . . . . . 1 . . Registered Components 1 | . 1 . . . . . . . Zone Layout 1 | . 1 . . . . . . . Fabricator Hacks . | . . . . . . . . . Repair Station Hacks . | . . . . . . . . . Recycling Unit Hacks 2 | . 1 . 1 . . . . . Report Inventory 1 | . 1 . . . . . . . Retrieve Matter 1 | . . . 1 . . . . . Scanalyzer . | . . . . . . . . . Garrison Access Hacks 1 | . . . . 1 . . . . Seal Access 1 | . . . . 1 . . . . Unauthorized Hacks 4 | . 2 . 1 1 . . . . Terminals 3 | . 1 . 1 1 . . . . Botnet 2 | . 1 . . 1 . . . . Operators 1 | . . . 1 . . . . . Fabricators . | . . . . . . . . . Repair Stations . | . . . . . . . . . Recycling Units 1 | . 1 . . . . . . . Tunnel 1 | . 1 . . . . . . . Scanalyzers . | . . . . . . . . . Garrison Access . | . . . . . . . . . Data Cores Recovered . | . . . . . . . . . Used . | . . . . . . . . . Hacking Detections 7 | . 2 . 2 3 . . . . Full Trace Events 1 | . 1 . . . . . . . Feedback Events . | . . . . . . . . . Feedback Blocked . | . . . . . . . . . Robot Schematics Acquired . | . . . . . . . . . Robots Built . | . . . . . . . . . Authchips . | . . . . . . . . . Time . | . . . . . . . . . Total Robot Build Rating . | . . . . . . . . . Part Schematics Acquired . | . . . . . . . . . Parts Built . | . . . . . . . . . Authchips . | . . . . . . . . . Time . | . . . . . . . . . Total Part Build Rating . | . . . . . . . . . Part Studies Acquired . | . . . . . . . . . Parts Repaired . | . . . . . . . . . Time . | . . . . . . . . . Parts Recycled . | . . . . . . . . . Recycled Matter . | . . . . . . . . . Retrieved Matter 227 | . . . 227 . . . . . Retrieved Components . | . . . . . . . . . Parts Scanalyzed . | . . . . . . . . . Part Schematics Acquired . | . . . . . . . . . Parts Damaged . | . . . . . . . . . Bothacking | -11 -10 -10 -8 -7 -7 -7 -7 -7 ------------ Run | Yrd Mat Sub Mat Fac Low Low Zio Dee Used RIF Installer . | . . . . . . . . . Robots Hacked . | . . . . . . . . . Non-combat . | . . . . . . . . . Combat . | . . . . . . . . . Robot Hacks Applied . | . . . . . . . . . Relay Couplers Released . | . . . . . . . . . Fabnet Peak Effective % . | . . . . . . . . . Robots Rewired . | . . . . . . . . . Allies Hacked . | . . . . . . . . . Hacks Repelled . | . . . . . . . . . Allies | -11 -10 -10 -8 -7 -7 -7 -7 -7 -------- Run | Yrd Mat Sub Mat Fac Low Low Zio Dee Total Allies 4 | . . . . . . . 4 . Largest Group 4 | . . . . . . . 4 4 Highest-Rated Group 104 | . . . . . . . 104 104 Highest-Rated Ally 31 | . . . . . . . 31 31 Total Orders . | . . . . . . . . . Ally Attacks 99 | . . . . . . . . 99 Total Damage 1267 | . . . . . . . . 1267 Kills 12 | . . . . . . . . 12 Allies Corrupted . | . . . . . . . . . Allies Melted . | . . . . . . . . . Intel | -11 -10 -10 -8 -7 -7 -7 -7 -7 ------- Run | Yrd Mat Sub Mat Fac Low Low Zio Dee Active Infowar (turns) 4969 | . 685 225 1096 486 1067 518 518 374 Optics 3447 | . . . 818 486 1067 518 518 40 Sensors 4831 | . 685 225 1096 486 1067 518 518 236 Terrain 138 | . . . . . . . . 138 Structural 3349 | . . . 563 486 1067 518 518 197 Robot Analysis Total . | . . . . . . . . . Derelict Logs Recovered 2 | . . . . . 1 . 1 . Drone Launches . | . . . . . . . . . Drone Recoveries . | . . . . . . . . . Exploration | -11 -10 -10 -8 -7 -7 -7 -7 -7 ------------- Run | Yrd Mat Sub Mat Fac Low Low Zio Dee Turns Passed 5634 | 112 719 225 1096 486 1067 518 518 893 Spaces Moved 2382 | 63 247 45 286 190 408 265 377 501 Core 3 | 2 . . . . . . . 1 Treads 1359 | 61 247 45 286 190 407 123 . . Legs . | . . . . . . . . . Wheels 1020 | . . . . . 1 142 377 500 Hover . | . . . . . . . . . Flight . | . . . . . . . . . Fastest Speed 50 | 50 160 340 340 245 190 135 135 50 Average Speed 213 | 156 259 349 340 245 244 186 135 151 Slowest Speed 480 | 160 320 480 340 245 246 245 135 190 Overloaded Moves . | . . . . . . . . . Propulsion Burnouts . | . . . . . . . . . Robots Hopped . | . . . . . . . . . Potential Cave-ins . | . . . . . . . . . Cave-ins Triggered . | . . . . . . . . . Exploration Rate (%) 37 | 5 48 4 26 11 69 47 66 60 Regions Visited 8 Branch Regions 5 Pre-discovered Areas 3 | . 1 . . . . . 2 . Known Exits Taken 1 | . . . . . 1 . . . Unknown Exits Taken 7 | 1 1 1 1 1 . 1 1 . Scrap Searched 4 | . . . . . 1 2 1 . Spaces Dug 41 | . . . . 1 2 19 . 19 Terrain Destroyed 56 | . . . . 1 17 19 . 19 Melee 6 | . . . . 1 2 1 . 2 Projectile . | . . . . . . . . . AOE 50 | . . . . . 15 18 . 17 Terrain Rammed . | . . . . . . . . . Walls Destroyed . | . . . . . . . . . Machines Disabled . | . . . . . . . . . Actions | -11 -10 -10 -8 -7 -7 -7 -7 -7 --------- Run | Yrd Mat Sub Mat Fac Low Low Zio Dee Total 2729 | 74 297 77 359 206 451 284 386 595 Wait 64 | . 21 5 7 3 5 . 8 15 Move 2374 | 62 246 44 285 189 407 264 376 501 Hop . | . . . . . . . . . Pick Up 60 | 6 10 2 16 4 5 7 1 9 Fast Attach 25 | 6 1 1 9 1 2 . . 5 Attach 27 | . . 3 1 2 1 1 . 19 Detach 7 | . . . 3 . 1 . . 3 Swap 29 | . 1 3 2 1 10 4 . 8 Drop 33 | . 1 1 9 3 7 5 1 6 Fire 75 | . 17 18 27 2 . 1 . 10 Melee 33 | . . . . 1 13 2 . 17 Ram . | . . . . . . . . . Kick . | . . . . . . . . . Crush . | . . . . . . . . . Escape Stasis . | . . . . . . . . . Rewire . | . . . . . . . . . Trap 2 | . . . . . . . . 2 Miscellaneous . | . . . . . . . . . Route ------- -11/Scrapyard -10/Materials (discovered 2 exits: [*Mat] / [*Sub]) -10/Subcaves -8/Materials -7/Factory -7/Lower Caves -7/Lower Caves -7/Zion -7/Deep Caves (discovered 1 exit: [*Pro]) History --------- Turn | Location | Event 28 | -11/Scrapyard | Discovered new exit (range 16) 113 | -11/Scrapyard | Entered Materials 311 | -10/Materials | Build established: Mutant 389 | -10/Materials | Discovered new exit (range 13) 733 | -10/Materials | Discovered new exit (range 8) 832 | -10/Materials | Entered Subcaves 833 | -10/Subcaves | Shifting Twisted Machinery released Sub. Shrapnel Launcher 833 | -10/Subcaves | Approached by a straggling Scientist 870 | -10/Subcaves | Core integrity fell below 50% 915 | -10/Subcaves | Lost 4 parts (1p2n1w) 1027 | -10/Subcaves | Discovered new exit (range 2) 1057 | -10/Subcaves | Entered Materials 1057 | -8/Materials | Evolved 4 slots: Utility x4 1917 | -8/Materials | Discovered new exit (range 7) 2153 | -8/Materials | Entered Factory 2153 | -7/Factory | Evolved 2 slots: Propulsion x2 2581 | -7/Factory | Discovered new exit (range 20) 2639 | -7/Factory | Entered Lower Caves 2639 | -7/Lower Caves | Spotted B-75 Beast 2683 | -7/Lower Caves | Destroyed B-75 Beast 3692 | -7/Lower Caves | Identified exit to Lower Caves 3706 | -7/Lower Caves | Entered another Lower Caves area 3707 | -7/Lower Caves | Encountered a Warlord checkpoint 4016 | -7/Lower Caves | Spotted B-75 Beast 4199 | -7/Lower Caves | Discovered new exit (range 20) 4224 | -7/Lower Caves | Entered Zion 4276 | -7/Zion | System corruption cleaned by Quarantine Array 4415 | -7/Zion | Acquired unknown access codes intercepted by a Zionite 4507 | -7/Zion | Met Imprinter 4548 | -7/Zion | Learned Factory terminal intel 4578 | -7/Zion | Gained Derelict followers 4658 | -7/Zion | Found GAL Module 4707 | -7/Zion | Opened final containment barrier to the Deep Caves 4727 | -7/Zion | Discovered new exit (range 3) 4727 | -7/Zion | Saw the warning signs outside the Deep Caves entrance 4742 | -7/Zion | Entered Deep Caves 4742 | -7/Deep Caves | Accompanied by 4 allies 4783 | -7/Deep Caves | Found Surveybot 24 Scanner 4786 | -7/Deep Caves | Found Surveybot 24 Chip 4878 | -7/Deep Caves | Z-Facility disabled 4940 | -7/Deep Caves | Attacked by Z-Imprinter 4967 | -7/Deep Caves | Allies destroyed Z-Imprinter 5009 | -7/Deep Caves | Lost 9 parts (3n3u3w) 5225 | -7/Deep Caves | Lost 4 parts (1p2n1u) 5380 | -7/Deep Caves | Discovered new exit (range 6) 5610 | -7/Deep Caves | Core integrity fell below 50% 5628 | -7/Deep Caves | Core integrity fell below 20% 5635 | -7/Deep Caves | Destroyed by XS-MF3(z) with Zionite Laser-S Last Messages --------------- 05587_ Identified Zio. Glidesys I. 05591_ Acquired Prototype Energy Gun. 05591_ Identified Zio. Phaser-S. 05597_ Discarded Surveybot 24 Chip. 05610_ Zio. Light Carapace destroyed. 05611_ Hvy. Deuterium Engine destroyed. 05612_ Flamer destroyed. 05613_ Arm. Wheel destroyed. 05614_ Flamer destroyed. 05622_ Exp. Heat Sink destroyed. 05624_ Hrd. Medium Armor Plating destroyed. 05625_ OX-CT8(z) heat spikes uncontrollably. 05628_ OX-CT8(z) heat damages Zio. Glidesys I, Prototype Storage. 05628_ Imp. Cooling System destroyed. 05629_ Imp. Light Armor Plating destroyed. 05631_ Zio. Glidesys I destroyed. 05632_ Com. Wheel destroyed. 05634_ Mak. Hammer destroyed. 05634_ Dropped Hvy. Deuterium Engine. 05634_ Dropped Huge Storage Unit. Map ----- +----------------------------------------------------+ | | | | | | | | | | | | | | | | | | | ?????????????????????????????????????????????????? | | ######??????????????????????????????????????????## | | #####?????????????????????????????????????#?# | | ##????###??????????????????????????? ??#? | | #??## ####????????###??????#?????? ### | | ## ## ##??# ##??????? ###### # #?? ## | | ?# ## ###???# ##?????? # ## | | ?# ## #?##### #?????? | | ?# ## ### ## #?????? | | ?# ## ## ## #??????? | | ?# ##?????## | | ?# ##??????# " | | ?###### #??###### " | | ??????# #??#;# # " | | ??????# #??##/*zzz " | | ?????## ##??#!!*!z " | | ????## ###???##!@z# " | | ???## ######??????###;# | | ???# ##?????????????## " | | ??## #???????????????## = " | | ??# ##?????????????#### % " | | ?## ####?????????????## # * | | ## ##????????????????# | | # ##????????????????# | | # #####????????????# | | #????????????## | | #????????????### | | ##### #??????????????# | | ##????######??????????????## | | #???########???????????????# | | ##### # <#????????????##### | | ## #???????????## ## | | ## ####???????????# ## | | ## ###??????????????# # | | # #???????????????## | | # #???????######### | | ######### | | | | | | ######### ###### | | ########## #????# | +----------------------------------------------------+ Best States ------------- Heat Dissipation 87 Energy Generation 18 Energy Capacity 310 Matter Stores 300 Matter Capacity 300 Sight Range 20 Robot Scan Range 14 Terrain Scan Range 24 Terrain Scan Density 2010 Armor Coverage 625 Evasion (%) 40 Targeting Accuracy 5 Recoil Reduction 4 Item Schematics ----------------- None Robot Schematics ------------------ None Fabricated ------------ Nothing Repaired ---------- Nothing Studied --------- None Alien Tech Used ----------------- None Achievements -------------- A Problem For Future Me Hammer Time Challenges ------------ None Game ------ Seed ReinforcedWardroneMembrane Manual? 0 Play Time 00:35:33 Cumulative 125.9 hours Start 2025.11.13 @ 16:09:19 End 2025.11.13 @ 16:44:53 Sessions 1 Manual Loads 0 Difficulty Rogue Special Mode None Game No. 114 Rogue 113 Adventurer 0 Explorer 1 Win Type - Total 7 Types 4/0/1/1/0/0/0/1/0/0 Lore% 72 Gallery% 66 Achievement% 40 Wizard Run 0 Options --------- Layout 0 ASCII 0 Keyboard 0 Movement Numpad Keybinds 0 Fullscreen 2 Font 18/Terminus Map View 76x50 Zoom Use 0% Tactical HUD 1 Map Filters NONE Filters NONE Steam 1 RUN: 9d9583b4-442b-43e5-946e-77c847d010b8